[Event "1000GM Saint Louis 2022"]
[Site "Saint Louis"]
[Date "2022.07.19"]
[Round "2.3"]
[White "Chandra, Akshat"]
[Black "Mardov, Dimitar"]
[Result "1-0"]
[ECO "E32"]
[WhiteElo "2485"]
[BlackElo "2396"]
[Annotator "TA"]
[PlyCount "67"]
[EventDate "2022.07.20"]
[EventType "tourn"]
[EventCountry "USA"]
[SourceTitle "playchess.com"]
[Source "ChessBase"]
[SourceQuality "1"]
[TimeControl "5400+30"]

{[%evp 9,67,19,19,16,32,22,18,17,22,24,25,29,33,38,21,20,23,27,121,132,129,136,135,121,125,102,96,89,77,91,179,182,190,190,185,175,273,237,203,114,343,339,322,336,331,289,322,315,481,460,556,444,687,727,1005,548,502,501,477,452]} 1. d4 {[%emt 0:01:11]} Nf6 {[%emt 0:00:31]} 2. c4 {[%emt 0:00:23]} e6 {[%emt 0:00:05]} 3. Nc3 {[%emt 0:00:26]} Bb4 {[%emt 0:00:16]} 4. Qc2 {[%emt 0:01:33]} b6 {[%emt 0:00:32]} 5. e4 {[%emt 0:00:23]} c5 {[%emt 0:00:11]} 6. d5 {[%emt 0:00:33] E32: Nimzo-Indian: Classical (4 Qc2): 4...0-0.} Qe7 {[%emt 0:01:01]} 7. Nge2 {[%emt 0:00:37]} exd5 {[%emt 0:00:15]} 8. exd5 {[%emt 0:00:06] The position is equal.} O-O {[%emt 0:01:01]} 9. Bg5 {[%emt 0:02:04]} d6 {[%emt 0:04:29][%cal Ob6b5]} 10. O-O-O {[%emt 0:01:02]} h6 {[%emt 0:09:09]} 11. Bh4 {[%emt 0:01:13]} Nbd7 {[%emt 0:10:20]} 12. Ng3 {[%emt 0:02:00]} Qe5 {[%emt 0:03:24] White must now prevent ...Bxc3.} 13. Qd2 {[%emt 0:03:57] And now Bd3 would win.} Bxc3 {[%emt 0:15:53]} (13... Qd4 $11 {keeps the balance.} 14. Nf5 (14. Qxd4 cxd4 15. Bxf6 dxc3 $11) 14... Qg4 15. Bxf6 Nxf6 16. Nxd6 Ba6) 14. bxc3 $16 {[%emt 0:00:05] Hoping for Re1.} Ne4 {[%emt 0:02:01]} 15. Nxe4 {[%emt 0:03:18]} Qxe4 {[%emt 0:00:13]} 16. f4 $1 {[%emt 0:04:29]} Qg6 {[%emt 0:03:05]} 17. Bd3 {[%emt 0:01:33]} f5 {[%emt 0:01:02]} 18. g4 {[%emt 0:01:36] White is more active.} Nf6 {[%emt 0:04:35] [#]} 19. Rhg1 $146 {[%emt 0:04:32]} ({Predecessor:} 19. Bxf6 Qxf6 20. g5 Qg6 21. gxh6 Qxh6 22. Rhg1 Bd7 23. Rg5 Rae8 24. Rdg1 Rf6 25. Be2 {1-0 (45) Postny,E (2576)-Kozak,A (2450) Teplice 2018}) 19... Rb8 {[%emt 0:08:36]} (19... a6 $16) 20. Rde1 $1 $18 {[%emt 0:06:29] Strongly threatening gxf5.} (20. gxf5 $6 Qh5 21. Qe1 (21. Qg2 Rb7 $11) 21... Rb7 $14) 20... Rb7 {[%emt 0:01:19] [#]} 21. Re6 $1 {[%emt 0:17:18][%mdl 512]} Bxe6 {[%emt 0:00:31]} 22. dxe6 {[%emt 0:00:03]} Nxg4 {[%emt 0:06:08]} (22... Qe8 {was necessary.}) 23. h3 {[%emt 0:19:22]} Qh5 {[%emt 0:01:00] [#]} (23... Qxe6 24. hxg4 fxg4 25. Re1 (25. f5 Rxf5 26. Bxf5 Qxf5 $11)) 24. Qe1 {[%emt 0:21:07]} (24. e7 $1 $18 {[%cal Re7f8]} Re8 25. Qe1 Rbxe7 26. Bxe7) 24... Nh2 $2 {[%emt 0:18:09] A mistake that costs the game.} (24... Ne3 $2 25. Be2 (25. Bf2 Qxh3 26. Bxe3 Qh2 $11) 25... Qe8 26. Bf3 $18) (24... g5 $16 25. e7 Re8 26. hxg4 Qxh4 27. Qe6+ Kg7 28. gxf5 (28. Bxf5 Rbxe7 29. Qg6+ Kf8 $17) 28... Qxf4+ 29. Kc2 Qf2+ 30. Kb3 Rexe7 31. Qg6+ Kf8 32. Qxh6+ Ke8 33. Qxg5 b5 34. cxb5 a6) 25. e7 {[%emt 0:03:32]} Re8 {[%emt 0:01:33] aiming for ...Nf3.} 26. Qg3 {[%emt 0:03:17][%csl Gg1,LRg7,LRh2][%cal Rg3g7] The board is on fire.} ({Less strong is} 26. Bf6 Rbxe7 27. Bxe7 Nf3 28. Qe6+ Qf7 29. Qxf7+ Kxf7 $16) 26... Rbxe7 {[%emt 0:02:17]} 27. Bxe7 {[%emt 0:00:01]} Rxe7 {[%emt 0:00:10]} 28. Qxh2 {[%emt 0:00:40]} Re3 {[%emt 0:04:08] [#]} (28... Qf3 {was called for.}) 29. Qg2 $1 {[%emt 0:00:00][%csl Gg1][%cal Rg2g7] White is clearly winning.} Qf7 {[%emt 0:00:49]} (29... Re7 30. Qd5+) 30. Kd2 {[%emt 0:00:51]} Re6 {[%emt 0:01:00] [#]} (30... Re7 $142 31. Qd5 Re6) 31. Bxf5 $1 {[%emt 0:01:38][%mdl 512]} Rf6 {[%emt 0:00:07]} (31... Re7 32. Bg6) 32. Qa8+ {[%emt 0:00:27]} Qf8 {[%emt 0:00:09]} 33. Qxf8+ {[%emt 0:00:18]} Kxf8 {[%emt 0:00:15]} 34. Bg6 {[%emt 0:00:03] Weighted Error Value: White=0.27 (precise) /Black=0.43} 1-0

[Event "1000GM Saint Louis 2022"]
[Site "Saint Louis"]
[Date "2022.07.19"]
[Round "2.4"]
[White "Yu, Jennifer"]
[Black "Belous, Vladimir"]
[Result "0-1"]
[ECO "E60"]
[WhiteElo "2268"]
[BlackElo "2519"]
[Annotator "TA"]
[PlyCount "130"]
[EventDate "2022.07.20"]
[EventType "tourn"]
[EventCountry "USA"]
[SourceTitle "playchess.com"]
[Source "ChessBase"]
[SourceQuality "1"]
[TimeControl "5400+30"]

{[%evp 20,130,48,41,66,51,70,80,80,6,11,0,0,0,21,0,0,-22,11,0,21,23,27,0,0,0,0,0,0,-8,-14,-14,-10,-12,-21,-81,-72,-78,-64,-85,0,0,143,152,328,113,114,139,143,140,137,130,266,248,216,0,0,0,189,23,23,23,408,22,24,-332,-318,-328,-312,-297,-278,-384,-375,-310,-337,-420,-408,-408,-395,-355,-352,-485,-482,-460,-422,-616,-636,-609,-604,-1012,-1000,-994,-983,-987,-975,-849,-850,-1012,-1001,-957,-931,-863,-836,-1088,-1078,-2953,-2877,-6633,-5952,-5507,-1984,-29984,-29983]} 1. d4 {[%emt 0:00:33]} Nf6 {[%emt 0:00:36]} 2. c4 {[%emt 0:00:16]} g6 {[%emt 0:00:29]} 3. g3 {[%emt 0:00:12]} Bg7 {[%emt 0:00:55]} 4. Bg2 {[%emt 0:00:16]} O-O {[%emt 0:00:26]} 5. Nc3 {[%emt 0:00:15]} d6 {[%emt 0:00:04]} 6. Nf3 {[%emt 0:00:12]} Nbd7 {[%emt 0:00:06]} 7. O-O {[%emt 0:00:36]} e5 {[%emt 0:00:18]} 8. e4 {[%emt 0:01:06]} a6 {[%emt 0:04:00]} 9. Qc2 {[%emt 0:01:50]} Re8 {[%emt 0:01:35]} 10. Rd1 exd4 11. Nxd4 {[%emt 0:07:47]} Ne5 $1 {[%emt 0:03:48][%mdl 4] is now more promising than 11...Rb8. E60: King's Indian: Unusual lines and Fianchetto Variation without Nc3.} 12. c5 {[%emt 0:16:10]} Bg4 {[%emt 0:00:23]} (12... dxc5 13. Nf5 $1 (13. Nc6 Qxd1+ 14. Nxd1 Nxc6 $16) 13... Nfd7 14. Nxg7 Kxg7 15. f4 $16) 13. f3 {[%emt 0:00:53]} Bd7 {[%emt 0:00:19] [#] White is better.} (13... dxc5 $2 14. Nf5 Nfd7 15. Nxg7 (15. fxg4 gxf5 16. g5 c4 $11) 15... Bxf3 16. Nxe8 Bxd1 17. Nxd1 $18) 14. cxd6 $146 {[%emt 0:01:38]} (14. f4 $16 Nc4 15. b3) ({Predecessor:} 14. Nb3 Qe7 15. Bg5 Bc6 16. cxd6 cxd6 17. Rd4 h6 18. Bd2 Rac8 19. Re1 b5 20. Qd1 {0-1 (39) Strikovic,A (2501)-Tissir,M (2439) Lorca 2006}) 14... cxd6 $11 {[%emt 0:00:04]} 15. h3 {[%emt 0:06:22]} Rc8 {[%emt 0:01:52]} 16. Qf2 {[%emt 0:03:31]} b5 {[%emt 0:09:37]} 17. a3 {[%emt 0:04:53]} Nc4 {[%emt 0:02:27]} 18. Nde2 {[%emt 0:01:16]} Qa5 {[%emt 0:05:32] Strongly threatening ...b4.} 19. Ra2 {[%emt 0:13:49]} (19. Rb1 {with more complications.} d5 20. Bg5 Qb6 21. b3) 19... Qc7 {[%emt 0:05:59]} 20. b3 {[%emt 0:18:17]} Ne5 {[%emt 0:01:02][%cal Bc4e5,Be5d7,Bd7c5,Bc5b3][%mdl 32]} 21. Be3 {[%emt 0:01:37]} (21. Rc2 $5 {[%cal Rc1b2]}) 21... Be6 {[%emt 0:02:27]} 22. Rb2 {[%emt 0:00:55]} Qd7 {[%emt 0:06:57]} 23. Qf1 {[%emt 0:00:09]} Qe7 {[%emt 0:05:08][%cal Od6d5]} 24. f4 {[%emt 0:07:18]} Ned7 {[%emt 0:00:20][%cal Of6e4]} 25. Bd4 {[%emt 0:02:43]} Nc5 $1 {[%emt 0:00:57]} 26. b4 {[%emt 0:00:40]} Nb3 {[%emt 0:08:21]} 27. Qf3 {[%emt 0:04:41]} (27. Bxf6 $11 Bxf6 28. Rc2) 27... Nxd4 $17 {[%emt 0:02:28]} 28. Nxd4 {[%emt 0:00:08]} Qa7 {[%emt 0:01:33][%cal Of6e4]} 29. Kh1 {[%emt 0:01:09]} Bc4 {[%emt 0:02:28]} (29... Nxe4 $6 30. Nxe4 Bxd4 31. Rbd2 $11) (29... Bd7 $1 $17) 30. Rbd2 $11 {[%emt 0:00:57]} Re7 {[%emt 0:02:34]} (30... Qc7 $11 {remains equal.}) 31. e5 $1 $36 {[%emt 0:01:02][%mdl 2048] White is really pushing.} Nh5 {[%emt 0:03:29]} (31... dxe5 $16 {was called for.} 32. Nc6 Qc7) 32. Nc6 $2 {[%emt 0:01:49]} (32. exd6 Rd7 33. g4 Bxd4 $18) (32. g4 $18) 32... Rxc6 {[%emt 0:04:09]} 33. Qxc6 {[%emt 0:00:05]} Nxg3+ {[%emt 0:00:13]} 34. Kh2 {[%emt 0:00:02]} Bh6 {[%emt 0:00:24]} 35. Rxd6 {[%emt 0:01:23] White wants to mate with Rd8+.} (35. Kxg3 Qe3+ 36. Bf3 Bxf4+ 37. Kg2 Qxe5 $17) (35. Qc8+ $6 Kg7 36. exd6 (36. Kxg3 $2 Qe3+ 37. Bf3 Bxf4+ 38. Kg2 Qxc3 $19) 36... Bxf4 37. dxe7 Nf1+ 38. Kh1 Ng3+ 39. Kh2 Nf1+ 40. Kh1 Ng3+ 41. Kh2 $11) 35... Nh5 {[%emt 0:00:41]} (35... Kg7 $16) 36. R1d4 {[%emt 0:00:59]} Kg7 {[%emt 0:02:11]} (36... Bxf4+ $2 37. Rxf4 $1 {[%mdl 512]} Qe3 38. Rd8+ (38. Rf3 Qxe5+ 39. Kg1 Qe1+ 40. Bf1 Re3 $18) 38... Kg7 39. Re4 $1 (39. Rf3 Qxe5+ 40. Kg1 Qe1+ 41. Bf1 Bxf1 $16) 39... Qg3+ 40. Kg1 Qxc3 41. Qd6 Qc1+ 42. Kh2 $18 (42. Qd1 Qxd1+ 43. Rxd1 Ng3 $16)) 37. f5 {[%emt 0:01:17]} ({Better is} 37. Rd8 $1 $18) 37... Rxe5 $11 {[%emt 0:01:03] Threatens to win with ...Bf4+.} (37... Bf4+ $2 38. Rxf4 $1 {[%mdl 512]} Qe3 39. Qf3 $1 Rxe5 40. Qxe3 Rxe3 41. Rf3 $18) 38. Rxc4 {[%emt 0:01:35] Rg4 is the strong threat.} (38. Qxa6 Qe7 39. f6+ (39. Nd5 $2 Rxd5 40. Re4 Rxd6 $19) 39... Nxf6 40. Rxf6 Qxf6 41. Qxf6+ Kxf6 $17) 38... Rxf5 $2 {[%emt 0:04:07]} (38... Re1 $11 39. f6+ (39. Qc5 $2 bxc4 40. Bf3 Qxc5 $19) 39... Nxf6 $1 {[%mdl 512]} 40. Rxf6 bxc4) 39. Rcd4 $2 {[%emt 0:00:33]} (39. Re4 $1 $18 {And now Nd5 would win.} Bf4+ 40. Rxf4 $1 {[%mdl 512]} Nxf4 41. Ne4) 39... Qe7 $1 {[%emt 0:00:21]} 40. Re4 {[%emt 0:00:48] Inhibits Qe5+.} Qg5 {[%emt 0:04:11][%mdl 8192]} (40... Bf4+ $11 41. Rxf4 Nxf4) 41. Rg4 $2 {[%emt 0:00:07]} (41. Ne2 $1 $18 {Hoping for h4.} Rf2 42. Qc3+ (42. Re8 Nf6 $16) 42... Nf6 43. Ng3) 41... Qe3 {[%emt 0:00:44]} 42. Rdd4 $2 {[%emt 0:00:51][%mdl 8192]} (42. Ne4 $11 {and White has nothing to worry.} Bf4+ 43. Rxf4 $1 Qxf4+ 44. Kh1) 42... Qe5+ $19 {[%emt 0:01:38]} 43. Kh1 {[%emt 0:00:05] [#]} Ng3+ {[%emt 0:01:16]} ({Not} 43... Qe1+ $2 44. Kh2 Qe5+ 45. Kh1 Ng3+ 46. Rxg3 Qxg3 47. Re4 $19) 44. Rxg3 {[%emt 0:00:07]} Qxg3 {[%emt 0:00:03]} 45. Re4 {[%emt 0:01:31] Prevents Qe1+.} Bf4 {[%emt 0:02:16]} ({Inferior is} 45... Rf2 46. Rg4 Qe3 47. Ne4 Qe1+ 48. Kh2 Bf4+ 49. Rxf4 Rxf4 50. Qxa6 $11) 46. Rxf4 {[%emt 0:00:05]} Rxf4 {[%emt 0:00:06]} 47. Nd5 {[%emt 0:00:43]} Rf2 {[%emt 0:02:16][%csl Gf2][%cal Rg3g2]} 48. Qc3+ {[%emt 0:00:42]} Qxc3 {[%emt 0:00:05] The board is on fire.} 49. Nxc3 {[%emt 0:00:03]} Rc2 {[%emt 0:00:05]} 50. Ne4 {[%emt 0:00:40]} Ra2 {[%emt 0:00:06]} 51. Nc5 {[%emt 0:00:19]} Rxa3 {[%emt 0:00:02]} 52. Kh2 {[%emt 0:00:04]} (52. Kg1 $142) 52... a5 {[%emt 0:00:22]} 53. bxa5 {[%emt 0:00:05]} Rxa5 {[%emt 0:00:02][%cal Ba3a5,Ba5e5,Be5e3,Be3c3][%mdl 32]} 54. Bf1 {[%emt 0:00:12]} b4 {[%emt 0:00:19]} 55. Nb3 {[%emt 0:00:12]} Re5 {[%emt 0:00:10]} 56. Kg2 {[%emt 0:00:22]} Re3 {[%emt 0:00:04]} 57. Bc4 {[%emt 0:00:15]} f5 {[%emt 0:00:04]} 58. Nd2 {[%emt 0:00:19]} Kf6 {[%emt 0:00:07]} 59. h4 {[%emt 0:00:27]} h6 {[%emt 0:00:10][%cal Bh7h6,Bh6g5,Bg5g4][%mdl 32]} 60. Kf2 {[%emt 0:00:05]} Rc3 {[%emt 0:00:24] aiming for ...g5.} 61. Ke2 {[%emt 0:00:17]} g5 {[%emt 0:00:25]} 62. hxg5+ {[%emt 0:00:05]} hxg5 {[%emt 0:00:03]} 63. Kf2 {[%emt 0:00:27]} g4 {[%emt 0:00:05] ( -> ...g3+)} 64. Bg8 {[%emt 0:00:12]} Ke5 {[%emt 0:00:18]} (64... g3+ $142 65. Kg1 Rc1+ 66. Kg2 Rc2 67. Kxg3 Rxd2) 65. Nb3 {[%emt 0:00:08]} f4 {[%emt 0:00:11] Weighted Error Value: White=1.00/Black=0.39} 0-1

[Event "1000GM Saint Louis 2022"]
[Site "Saint Louis"]
[Date "2022.07.19"]
[Round "2.5"]
[White "Abrahamyan, Tatev"]
[Black "Eswaran, Ashritha"]
[Result "1-0"]
[ECO "B10"]
[WhiteElo "2291"]
[BlackElo "2394"]
[Annotator "TA"]
[PlyCount "71"]
[EventDate "2022.07.20"]
[EventType "tourn"]
[EventCountry "USA"]
[SourceTitle "playchess.com"]
[Source "ChessBase"]
[SourceQuality "1"]
[TimeControl "5400+30"]

{[%evp 9,71,0,0,-8,15,6,23,21,44,21,62,58,112,101,99,58,152,163,206,202,210,191,247,249,306,293,308,304,300,307,330,330,353,341,398,387,454,458,442,450,488,419,414,410,539,508,652,643,645,649,635,636,722,634,594,613,783,790,1032,1022,1474,1448,5743,2821]} 1. e4 {[%emt 0:00:03]} c6 {[%emt 0:00:29]} 2. Nf3 {[%emt 0:00:39][%cal Bg1f3,Bf3e1,Be1d3][%mdl 32]} d5 {[%emt 0:00:07]} 3. d3 {[%emt 0:00:03]} dxe4 {[%emt 0:00:08]} 4. dxe4 {[%emt 0:00:03]} Qxd1+ {[%emt 0:00:10]} 5. Kxd1 {[%emt 0:00:18]} Nf6 {[%emt 0:00:25]} 6. Nbd2 {[%emt 0:03:04][%cal Bb1d2,Bd2c4,Bc4a5][%mdl 32] B10: Caro-Kann: 2 d3 and 2 c4.} Nbd7 {[%emt 0:02:12]} 7. Ne1 {[%emt 0:04:34]} g5 {[%emt 0:03:27]} 8. Nd3 {[%emt 0:02:03] White has an edge.} Rg8 {[%emt 0:03:13] [#]} 9. a4 $146 {[%emt 0:02:26]} ({Predecessor:} 9. c3 e5 10. Kc2 Nc5 11. f3 Nxd3 12. Bxd3 Be6 13. Bc4 g4 14. Bxe6 fxe6 15. g3 {0-1 (57) Khanin,S (2506)-Dragun,K (2557) ICC INT 2021}) 9... e5 {[%emt 0:05:38]} 10. f3 {[%emt 0:03:11]} Bd6 {[%emt 0:02:22]} (10... g4 $14) 11. Nc4 $16 {[%emt 0:02:34]} Bc7 {[%emt 0:01:23]} 12. Bd2 {[%emt 0:02:50]} b5 {[%emt 0:10:47]} ({Black should play} 12... g4 $14) 13. Na5 {[%emt 0:07:20] White is more active.} Nb8 {[%emt 0:07:01]} 14. axb5 {[%emt 0:07:56]} cxb5 {[%emt 0:00:09]} 15. Nc5 {[%emt 0:00:59]} Kf8 {[%emt 0:09:58]} (15... a6 $142 16. Nab3 Nfd7 17. Bxb5 g4) 16. Bxb5 $18 {[%emt 0:02:26]} Nbd7 {[%emt 0:00:47]} 17. Nd3 {[%emt 0:04:31]} Nb6 {[%emt 0:02:37]} 18. Bc6 {[%emt 0:08:27]} Rb8 {[%emt 0:00:08]} 19. Bc3 {[%emt 0:00:48]} Be6 {[%emt 0:13:44]} 20. Nxe5 {[%emt 0:05:35]} ({But not} 20. Bxe5 Bxe5 21. Nxe5 Kg7 $18) 20... h5 {[%emt 0:03:11]} 21. Nd3 {[%emt 0:02:02]} Nfd7 {[%emt 0:00:57]} 22. Nb3 {[%emt 0:04:47]} Nc8 {[%emt 0:04:21]} 23. Nd4 {[%emt 0:02:54]} Ke7 {[%emt 0:04:23]} 24. Ba4 {[%emt 0:05:16]} Ra8 {[%emt 0:01:31]} 25. Nxe6 {[%emt 0:06:42]} fxe6 {[%emt 0:00:15]} 26. Ke2 {[%emt 0:00:17]} Nf6 {[%emt 0:01:41]} 27. Bb3 {[%emt 0:02:51] White is clearly winning.} Bb6 {[%emt 0:01:08]} 28. Bb4+ {[%emt 0:00:47]} Kf7 {[%emt 0:01:05]} 29. Ne5+ {[%emt 0:01:12]} Kg7 {[%emt 0:00:07]} 30. Bc3 {[%emt 0:01:19]} Re8 {[%emt 0:01:38]} 31. Rhd1 {[%emt 0:01:33]} Kh6 {[%emt 0:01:32]} 32. Bd2 {[%emt 0:01:09]} Nh7 {[%emt 0:03:09]} 33. h4 {[%emt 0:00:26]} Re7 {[%emt 0:00:47]} 34. hxg5+ {[%emt 0:00:26]} Nxg5 {[%emt 0:00:07]} 35. Rh1 {[%emt 0:00:06][%cal Oh1h5] Rxh5+! would kill now.} Bc7 {[%emt 0:00:50] [#]} 36. Rxh5+ $3 {[%emt 0:00:17][%mdl 512] Weighted Error Value: White=0.09 (flawless) /Black=0.39} 1-0

[Event "1000GM Saint Louis 2022"]
[Site "Saint Louis"]
[Date "2022.07.20"]
[Round "3.1"]
[White "Eswaran, Ashritha"]
[Black "Woodward, Andy"]
[Result "1-0"]
[ECO "B90"]
[WhiteElo "2394"]
[BlackElo "2486"]
[Annotator "TA"]
[PlyCount "129"]
[EventDate "2022.07.20"]
[EventType "tourn"]
[EventCountry "USA"]
[SourceTitle "playchess.com"]
[Source "ChessBase"]
[SourceQuality "1"]
[TimeControl "5400+30"]

{[%evp 11,129,15,25,0,0,0,0,7,12,0,0,0,30,23,27,0,12,0,0,-10,16,15,20,20,56,20,8,21,127,121,125,63,58,46,62,40,43,39,145,142,135,111,148,152,141,150,160,129,163,150,164,156,151,0,0,0,0,15,18,15,42,42,62,61,100,94,104,89,183,165,307,279,246,206,180,114,152,146,589,604,579,322,333,336,331,320,305,82,755,755,1190,664,652,567,1270,1292,1237,1189,770,606,544,485,830,811,987,885,1471,1392,12841,12842,12842,12843,12843,12843,12844,12844,12847,12848,12850,27999]} 1. e4 {[%emt 0:00:06]} c5 {[%emt 0:00:06]} 2. Nf3 {[%emt 0:00:14]} d6 {[%emt 0:00:05]} 3. d4 {[%emt 0:00:10]} cxd4 {[%emt 0:00:05]} 4. Nxd4 {[%emt 0:00:08]} Nf6 {[%emt 0:00:06]} 5. Nc3 {[%emt 0:00:09]} a6 {[%emt 0:00:05]} 6. h3 {[%emt 0:00:36]} b5 {[%emt 0:01:13][%cal Bb7b5,Bb5b4][%mdl 32]} 7. a4 {[%emt 0:00:28] B90: Sicilian Najdorf: Unusual White 6th moves, 6 Be3 Ng4 and 6 Be3 e5.} b4 {[%emt 0:00:27]} 8. Nd5 {[%emt 0:00:08]} e6 {[%emt 0:02:25]} 9. Nxf6+ {[%emt 0:00:25] The position is equal.} Qxf6 {[%emt 0:00:09]} 10. g3 {[%emt 0:00:26]} Bb7 {[%emt 0:08:24]} 11. Bg2 {[%emt 0:01:22] [#]} Qd8 $146 {[%emt 0:02:52]} (11... e5 $5 {[%cal Re5d4]} 12. Nf5 Nd7 $14) ({Predecessor:} 11... Nd7 12. O-O Nc5 13. Re1 e5 14. c3 bxc3 15. bxc3 Be7 16. Nf5 O-O 17. Ba3 g6 {0-1 (58) Berelowitsch,A (2576)-Ruck,R (2574) Germany 2009}) 12. O-O {[%emt 0:04:29]} Be7 {[%emt 0:01:09]} 13. Qd3 {[%emt 0:02:11]} O-O {[%emt 0:03:10]} 14. Bd2 {[%emt 0:08:35]} a5 {[%emt 0:06:19]} 15. c3 {[%emt 0:02:45]} Na6 {[%emt 0:02:00]} 16. cxb4 {[%emt 0:08:27]} axb4 {[%emt 0:07:15]} 17. Qe3 {[%emt 0:02:49]} Bf6 {[%emt 0:04:01]} 18. Rab1 {[%emt 0:11:13]} (18. Rfd1 $5 {[%cal Re4e5]}) 18... Bxd4 {[%emt 0:12:54]} 19. Qxd4 {[%emt 0:00:12]} b3 {[%emt 0:00:11]} (19... e5 $11 {remains equal.} 20. Qe3 d5) 20. a5 $16 {[%emt 0:06:39]} Rb8 {[%emt 0:09:59]} 21. f4 {[%emt 0:04:32] Prevents e5. White is more active.} (21. Rfc1 $16) 21... e5 $14 {[%emt 0:04:48]} 22. Qe3 {[%emt 0:01:44]} exf4 {[%emt 0:03:08]} 23. gxf4 {[%emt 0:00:29]} Re8 {[%emt 0:03:20]} 24. Bc3 $40 {[%emt 0:02:04][%mdl 128] White has some attack.} Qh4 {[%emt 0:02:51] Inhibits Qg3.} ({Black should try} 24... f6 $14) 25. Qd4 $16 {[%emt 0:03:42][%csl Gc3,LRd6,LRg7][%cal Rd4g7]} Qh6 {[%emt 0:00:45]} (25... Qg3 $2 26. Rf3 Qg6 27. f5) 26. Rbe1 {[%emt 0:05:16]} Nc7 {[%emt 0:02:15][%cal Ba6c7,Bc7b5,Bb5d4,Bd4c2][%mdl 32]} 27. Qd1 $1 {[%emt 0:03:01]} Ba6 {[%emt 0:02:14]} 28. Rf2 {[%emt 0:00:33]} Bc4 {[%emt 0:02:09]} 29. f5 {[%emt 0:04:39]} Nb5 {[%emt 0:01:49]} 30. Bd2 {[%emt 0:01:11]} Qf6 {[%emt 0:00:54]} 31. Bf4 {[%emt 0:00:19]} Nd4 {[%emt 0:00:55]} 32. Bg5 $2 {[%emt 0:04:29]} Qe5 $11 {[%emt 0:02:09]} (32... Qxg5 33. Qxd4 d5 34. Qd2 $14) 33. Bf4 {[%emt 0:03:13]} Qxa5 {[%emt 0:00:53] White must now prevent ...Nc2.} 34. Qd2 {[%emt 0:00:33]} Qxd2 {[%emt 0:00:26]} 35. Rxd2 {[%emt 0:00:12]} Nc2 {[%emt 0:01:52]} 36. Red1 {[%emt 0:01:06]} Rbc8 {[%emt 0:01:43][%cal Od6d5]} 37. Rxd6 {[%emt 0:00:37]} Be2 {[%emt 0:02:58]} 38. R1d2 {[%emt 0:02:52]} Bb5 {[%emt 0:00:14]} 39. e5 $1 {[%emt 0:02:37]} h6 {[%emt 0:02:08]} (39... Nb4 $16) 40. Bd5 $18 {[%emt 0:01:14]} Bc4 {[%emt 0:00:48]} (40... Ne1 {keeps fighting.} 41. f6 (41. e6 fxe6 42. fxe6 Nd3 $16) 41... Bc4) 41. Bc6 {[%emt 0:00:28] A strong pair of Bishops.} Rf8 {[%emt 0:00:30]} 42. Be4 {[%emt 0:02:03]} Bb5 {[%emt 0:00:13]} 43. Rg2 {[%emt 0:02:11]} (43. Bd5 $18) 43... Rc4 {[%emt 0:02:05]} 44. f6 $1 {[%emt 0:01:33]} g5 $2 {[%emt 0:03:08][%mdl 8192] [#]} (44... Rxe4 $2 45. fxg7 Nd4 46. gxf8=N+ Kxf8 47. Bxh6+ Ke7 48. Bg5+ Kf8 49. Bh6+ Ke7 50. Bg5+ Kf8 51. Bf6 $18) (44... g6 $16 45. Bxg6 (45. Bxh6 Rxe4 46. Bxf8 Re1+ 47. Kf2 Kxf8 $11) 45... fxg6 46. Rxg6+ Kh8 47. Rxh6+ (47. Bxh6 Kh7 $15) 47... Kg8 48. Rg6+ Kh8) 45. Bxg5 $1 {[%emt 0:00:42][%mdl 512]} Ne1 {[%emt 0:00:06]} 46. Rg4 {[%emt 0:02:58]} Rxe4 {[%emt 0:03:30]} (46... hxg5 $2 47. Rxg5+ Kh8 48. Rh5+ Kg8 49. Bh7+ Kh8 50. Bf5+ Kg8 51. Bh7+ Kh8 52. Bf5+ Kg8 53. Bh7+ $18) 47. Rxe4 {[%emt 0:00:24]} Nf3+ {[%emt 0:00:01] [#]} 48. Kf2 $1 {[%emt 0:00:50]} Nxg5 {[%emt 0:00:03]} 49. Rg4 {[%emt 0:00:07]} (49. Rb4 $18 {and the rest is easy.}) 49... Rc8 $2 {[%emt 0:01:04][%mdl 8192]} (49... Kh7 $16) 50. h4 {[%emt 0:01:10][%cal Bh3h4,Bh4g5][%mdl 96] Pin. White is clearly winning.} Rc2+ {[%emt 0:00:05]} 51. Ke3 {[%emt 0:01:18]} Re2+ {[%emt 0:02:00] [#]} 52. Kd4 $1 {[%emt 0:00:13]} Rxb2 {[%emt 0:01:45][%cal Ob2c2] Hoping for ...Rc2!} 53. hxg5 {[%emt 0:00:20][%mdl 4096] Endgame KRR-KRB} h5 {[%emt 0:00:12]} 54. Rh4 {[%emt 0:00:57]} Kh7 {[%emt 0:00:21]} 55. Rxh5+ {[%emt 0:02:43]} Kg6 {[%emt 0:00:00]} 56. Rh3 {[%emt 0:00:10]} ({Not} 56. Kc3 Re2 $18) 56... Kxg5 {[%emt 0:00:39]} (56... Bf1 $142) 57. Rb6 {[%emt 0:01:07]} Ba4 {[%emt 0:01:16]} 58. Rf3 {[%emt 0:00:48]} Kg4 {[%emt 0:00:29]} 59. Ke3 {[%emt 0:00:18]} Rb1 {[%emt 0:00:34]} 60. Rf4+ {[%emt 0:00:06]} Kg5 {[%emt 0:00:05]} 61. Rxa4 {[%emt 0:00:04]} b2 {[%emt 0:00:09]} 62. Rab4 {[%emt 0:00:04]} Re1+ {[%emt 0:00:05]} 63. Kf2 {[%emt 0:00:11]} b1=Q {[%emt 0:00:08]} 64. Rxb1 {[%emt 0:00:03]} Rxb1 {[%emt 0:00:05]} 65. Rxb1 {[%emt 0:00:04] Weighted Error Value: White=0.34/Black=0.33} 1-0